{"text_format":"3","workbook":"xlsx","n_sheets":8,"sheets":["Summary","Medupi Fence-Mini Bill ","Marapong Fence-Mini Bill ","Bongidvuba Fencing ","Steenbokpan Fence-Mini Bill","Le Notsi Fence-Mini Bill","Nalithuba Fence-Mini Bill","Eskom Real Estate"],"not_rendered":{"images":1,"external_links":10,"defined_names":704},"read":"whole","date_system":"1900"}

{"sheet":"Summary","index":0,"n_rows":37,"n_cols":5,"rows_kept":37,"merged":[[7,0,7,3],[10,1,10,2],[12,1,12,3],[14,1,14,3],[16,1,16,3],[18,1,18,3],[20,1,20,3],[22,1,22,3],[29,3,29,4],[34,3,34,4]]}
[]
["ESKOM HOLDINGS SOC LTD"]
["PROJECT NAME: INSTALLATION  OF HIGH MESH SECURITY FENCING "]
["AT MEDUPI ,MARAPONG & OTHER 5 AIR QUALITY MONITORING STATION"]
[]
[]
[]
["FINAL SUMMARY"]
[]
["BILL","DESCRIPTION",null,null," AMOUNT"]
[1,"Medupi Air Quality Monitoring Station high mesh security fencing",null,null,{"$f":"'Medupi Fence-Mini Bill '!F52","v":0}]
[]
[2,"Marapong Air Quality Monitoring Station high mesh security fencing",null,null,{"$f":"'Marapong Fence-Mini Bill '!F45","v":0}]
[]
[3,{"$f":"'Bongidvuba Fencing '!B2","v":"Bongidvuba  Air Quality Monitoring Station high mesh security fencing"},null,null,{"$f":"'Bongidvuba Fencing '!F46","v":0}]
[]
[4,{"$f":"'Steenbokpan Fence-Mini Bill'!B2","v":"Steenbokpan Air Quality Monitoring Station high mesh security fencing"},null,null,{"$f":"'Steenbokpan Fence-Mini Bill'!F48","v":0}]
[]
[5,{"$f":"'Le Notsi Fence-Mini Bill'!B2","v":"LE Notsi Air Quality Monitoring Station high mesh security fencing"},null,null,{"$f":"'Le Notsi Fence-Mini Bill'!F46","v":0}]
[]
[6,{"$f":"'Nalithuba Fence-Mini Bill'!B2","v":"Nalithuba Air Quality Monitoring Station high mesh security fencing"},null,null,{"$f":"'Nalithuba Fence-Mini Bill'!F49","v":0}]
[]
[7,"Eskom Real Estate:Lephalale Site",null,null,{"$f":"'Eskom Real Estate'!F8","v":0}]
[]
[null,"Sub-Total Excl VAT",null,null,{"$f":"SUM(E11:E24)","v":0}]
["ADD","Contingency @ 10% (Solely for the use of the Client, and only on instruction to Contractor)",null,{"$f":"D25*E26","v":0}]
[null,"Subtotal 2",null,{"$f":"SUM(D25:D26)","v":0}]
["ADD","Value Added Tax@ 15%",null,null,{"$f":"+E25*15%","v":0}]
[null,"TOTAL ESTIMATE AMOUNT",null,null,{"$f":"+E25+E28","v":0}]
[]
["……………………………….............",null,"……………………………………..","…………………………………….."]
["Prepared By:",null,"Signature:","Date:"]
[]
[]
[]
["……………………………….............",null,"……………………………………..","…………………………………….."]
["Approved By:",null,"Signature:","Date:"]

{"sheet":"Medupi Fence-Mini Bill ","index":1,"n_rows":81,"n_cols":6,"rows_kept":81}
[]
[null,"Medupi Air Quality Monitoring Station high mesh security fencing"]
[]
[null,"ALL BILLS PROVISIONAL"]
[]
["Item","DESCRIPTION","UNIT","QTY","RATE","AMOUNT"]
[]
[null,"PRELIMINARY AND GENERAL"]
[]
[null,"(Applicable to the whole of the Works) "]
[]
[null,"Contractor to allow for Health & Safety Requirements, Enviromental & Quality Requirements,  Security, Site Establishment, Ablutions etc. All costs assosciated with running the project"]
[]
[1,"Management of works","Item",1,null,{"$f":"D14*E14","v":{"v":0,"d":"R0.00"}}]
[]
[null,"Medupi Air Quality Monitoring Station high mesh security fencing"]
[]
[null,"REMOVAL OF THE EXISTING FENCE"]
[]
[null,"SITE CLEARANCE, ETC.: "]
[]
[2,"Take down and remove existing 1800mm security fence with 100mm diameter  steel poles, barbed wire and 100 x 100mm, including 1,5m wide pedestrian gate  secumesh and hand over to the Employer.","m",{"$f":"(8.2*2)+(10.5*2)-(1.5)","v":35.9},null,{"$f":"D22*E22","v":{"v":0,"d":"R0.00"}}]
[]
[3,"Breakdown and remove 340 x 340 x 2000mm high above ground level brick columns including removing concrete bases,  backfilling and compaction.","No",2,null,{"$f":"D24*E24","v":{"v":0,"d":"R0.00"}}]
[]
[4,"Allow for clearing site for the width of 1000mm where fencing runs are to be erected including removing trees, shrubs etc, not exceeding 200mm girth, grubbing up roots and roughly levelling,","m2",{"$f":"(8.5*2)+(11.5*2)-(1.5)","v":38.5},null,{"$f":"D26*E26","v":{"v":0,"d":"R0.00"}}]
[]
[5,"Excavate in earth and fill adjacent portion to make up levels under fence line,","m2",{"$f":"(8.5*2)+(11.5*2)-(1.5)","v":38.5},null,{"v":0,"d":"R0.00"}]
[]
[null,"FENCING "]
[]
[null,"Galvanised High Security Fencing: "]
[]
[6,"Galvanised High Security Mesh Panels size 2400mm high, constructed of 76,2 x 12,7 x 4mm high tensile steel welded at a strength of 80% including 25MPa concrete foundations size 650mm x 350mm x 600mm deep for intermediate post, size 650 x 450 x 600mm deep for Corner post and Gate posts,Including compaction of the bottom of the fence post at 93% of mod. Aashto and including 2mm Class A galvanised binding wire and including straining eye bolts; the top covered with a single row of 900mm diameter razor coil  wire attached to and including four rows strands of double stranded barbed wire and weld mesh with Hog ring clips at 300mm centres, and at each overlap of the adjacent raizor coil.","m",{"$f":"(8.5*2)+(11.5*2)-(1.5)","v":38.5},null,{"$f":"D34*E34","v":{"v":0,"d":"R0.00"}}]
[]
[7,"Extra over fencing for 3000mm long galvanised intermediate post made up of either S275JR or S355JR Grade Steel set vertically into foundations at required centres including countersunk stainless steel cover plates to posts made up of 18mm x 40mm button head security screws, nuts and washers ","No",{"$f":"15","v":15},null,{"$f":"D36*E36","v":{"v":0,"d":"R0.00"}}]
[]
[8,"Ditto, but corner post and gate posts","No",{"$f":"6","v":6},null,{"$f":"D38*E38","v":{"v":0,"d":"R0.00"}}]
[]
[9,"Anti-tunnelling at the bottom of the perimeter fence panels, with bottom rail of the panels the flush at maximum 70mm from ground level","No",14,null,{"$f":"D40*E40","v":{"v":0,"d":"R0.00"}}]
[]
[10,"Pedestrian access gate size 1500 x 2400mm high fixed  complete including  ironmongery  and 900mm diameter razor coil  on top to match the perimeter fence","No",1,null,{"$f":"D42*E42","v":{"v":0,"d":"R0.00"}}]
[]
[11,"50mm Galvanised steel locking chain 500mm long welded to  gate frame.","No",1,null,{"v":0,"d":"R0.00"}]
[]
[12,"Union 3122-51mm brass padlock.","No",1,null,{"v":0,"d":"R0.00"}]
[]
[null,"Sub-Total",{"$nulls":3},{"$f":"SUM(F14:F46)","v":{"v":0,"d":"R0.00"}}]
[]
[13,"Contigency Amount @10%",{"$nulls":3},{"$f":"F48*10%","v":{"v":0,"d":"R0.00"}}]
[]
[null,"Sub-Total",{"$nulls":3},{"$f":"F48+F50","v":{"v":0,"d":"R0.00"}}]
[]
[null,"Add Vat @15%",{"$nulls":3},{"$f":"(F48+F50)*15%","v":{"v":0,"d":"R0.00"}}]
[]
[null,"Tatal Incl Vat",{"$nulls":3},{"$f":"F48+F50+F54","v":{"v":0,"d":"R0.00"}}]
[]
[]
[null," "]
[]
[]
[]
[]
[null," "]
[]
[]
[]
[null," "]
[]
[]
[]
[]
[]
[null," "]
[]
[]
[]
[]
[]
[]
[null," "]

{"sheet":"Marapong Fence-Mini Bill ","index":2,"n_rows":73,"n_cols":6,"rows_kept":73}
[]
[]
[null,"Marapong Air Quality Monitoring Station high mesh security fencing"]
[]
[null,"ALL BILLS PROVISIONAL"]
[]
[null,"DESCRIPTION","UNIT","QTY","RATE","AMOUNT"]
[]
[null,"PRELIMINARY AND GENERAL"]
[]
[null,"(Applicable to the whole of the Works) "]
[]
[null,"Contractor to allow for Health & Safety Requirements, Enviromental & Quality Requirements,  Security, Site Establishment, Ablutions etc. All costs assosciated with running the project"]
[]
[1,"Management of works","Item",1,null,{"$f":"D15*E15","v":{"v":0,"d":"R0.00"}}]
[]
[null,"SITE CLEARANCE, ETC.: "]
[]
[2,"Allow for clearing site for the width of 1000mm where fencing runs are to be erected including removing trees, shrubs etc, not exceeding 200mm girth, grubbing up roots and roughly levelling,","m2",{"$f":"(8.5*2)+(11.5*2)-(1.5)","v":38.5},null,{"$f":"D19*E19","v":{"v":0,"d":"R0.00"}}]
[]
[3,"Excavate in earth and fill adjacent portion to make up levels under fence line,","m2",{"$f":"(8.5*2)+(11.5*2)-(1.5)","v":38.5},null,{"$f":"D21*E21","v":{"v":0,"d":"R0.00"}}]
[]
[null,"FENCING "]
[]
[null,"Galvanised High Security Fencing: "]
[]
[4,"Galvanised High Security Mesh Panels size 2400mm high, constructed of 76,2 x 12,7 x 4mm high tensile steel welded at a strength of 80% including 25MPa concrete foundations size 650mm x 350mm x 600mm deep for intermediate post, size 650 x 450 x 600mm deep for Corner post and Gate posts,Including compaction of the bottom of the fence post at 93% of mod. Aashto and including 2mm Class A galvanised binding wire and including straining eye bolts; the top covered with a single row of 900mm diameter razor coil  wire attached to and including four rows strands of double stranded barbed wire and weld mesh with Hog ring clips at 300mm centres, and at each overlap of the adjacent raizor coil.","m",{"$f":"(8.5*2)+(11.5*2)-(1.5)","v":38.5},null,{"$f":"D27*E27","v":{"v":0,"d":"R0.00"}}]
[]
[5,"Extra over fencing for 3000mm long galvanised intermediate post made up of either S275JR or S355JR Grade Steel set vertically into foundations at required centres including countersunk stainless steel cover plates to posts made up of 18mm x 40mm button head security screws, nuts and washers ","No",{"$f":"15","v":15},null,{"$f":"D29*E29","v":{"v":0,"d":"R0.00"}}]
[]
[6,"Ditto, but corner post and gate posts","No",{"$f":"6","v":6},null,{"v":0,"d":"R0.00"}]
[]
[7,"Anti-tunnelling at the bottom of the perimeter fence panels, with bottom rail of the panels the flush at maximum 70mm from ground level","No",{"$f":"14","v":14},null,{"v":0,"d":"R0.00"}]
[]
[8,"Pedestrian access gate size 1500 x 2400mm high fixed  complete including  ironmongery  and 900mm diameter razor coil  on top to match the perimeter fence","No",1,null,{"v":0,"d":"R0.00"}]
[]
[9,"50mm Galvanised steel locking chain 500mm long welded to  gate frame.","No",1,null,{"v":0,"d":"R0.00"}]
[]
[10,"Union 3122-51mm brass padlock.","No",1,null,{"v":0,"d":"R0.00"}]
[]
[null,"Sub-Total",{"$nulls":3},{"$f":"SUM(F15:F39)","v":{"v":0,"d":"R0.00"}}]
[]
[11,"Add: Contigency Amount @10%",{"$nulls":3},{"$f":"F41*10%","v":{"v":0,"d":"R0.00"}}]
[]
[null,"Sub-Total",{"$nulls":3},{"$f":"F43+F41","v":{"v":0,"d":"R0.00"}}]
[]
[null,"Add Vat @15%",{"$nulls":3},{"$f":"(F41+F43)*15%","v":{"v":0,"d":"R0.00"}}]
[]
[null,"Tatal Incl Vat",{"$nulls":3},{"$f":"F41+F43+F47","v":{"v":0,"d":"R0.00"}}]
[]
[null," "]
[]
[]
[]
[]
[null," "]
[]
[]
[]
[null," "]
[]
[]
[]
[]
[]
[null," "]
[]
[]
[]
[]
[]
[]
[null," "]

{"sheet":"Bongidvuba Fencing ","index":3,"n_rows":75,"n_cols":6,"rows_kept":75}
[]
[null,"Bongidvuba  Air Quality Monitoring Station high mesh security fencing"]
[]
[null,"ALL BILLS PROVISIONAL"]
[]
[null,"DESCRIPTION","UNIT","QTY","RATE","AMOUNT"]
[]
[null,"PRELIMINARY AND GENERAL"]
[]
[null,"(Applicable to the whole of the Works) "]
[]
[null,"Contractor to allow for Health & Safety Requirements, Enviromental & Quality Requirements,  Security, Site Establishment, Ablutions etc. All costs assosciated with running the project"]
[]
[1,"Management of works","Item",1,null,{"$f":"D14*E14","v":{"v":0,"d":"R0.00"}}]
[]
[null,"Bongidvuba  Air Quality Monitoring Station high mesh security fencing"]
[]
[null,"SITE CLEARANCE, ETC.: "]
[]
[2,"Allow for clearing site for the width of 1000mm where fencing runs are to be erected including removing trees, shrubs etc, not exceeding 200mm girth, grubbing up roots and roughly levelling,","m2",{"$f":"(8.5*2)+(11.5*2)-(1.5)","v":38.5},null,{"$f":"D20*E20","v":{"v":0,"d":"R0.00"}}]
[]
[3,"Excavate in earth and fill adjacent portion to make up levels under fence line","m2",{"$f":"(8.5*2)+(11.5*2)-(1.5)","v":38.5},null,{"v":0,"d":"R0.00"}]
[]
[null,"FENCING "]
[]
[null,"Galvanised High Security Fencing: "]
[]
[4,"Galvanised High Security Mesh Panels size 2400mm high, constructed of 76,2 x 12,7 x 4mm high tensile steel welded at a strength of 80% including 25MPa concrete foundations size 650mm x 350mm x 600mm deep for intermediate post, size 650 x 450 x 600mm deep for Corner post and Gate posts,Including compaction of the bottom of the fence post at 93% of mod. Aashto and including 2mm Class A galvanised binding wire and including straining eye bolts; the top covered with a single row of 900mm diameter razor coil  wire attached to and including four rows strands of double stranded barbed wire and weld mesh with Hog ring clips at 300mm centres, and at each overlap of the adjacent raizor coil.","m",{"$f":"(8.5*2)+(11.5*2)-(1.5)","v":38.5},null,{"$f":"D28*E28","v":{"v":0,"d":"R0.00"}}]
[]
[5,"Extra over fencing for 3000mm long galvanised intermediate post made up of either S275JR or S355JR Grade Steel set vertically into foundations at required centres including countersunk stainless steel cover plates to posts made up of 18mm x 40mm button head security screws, nuts and washers ","No",{"$f":"15","v":15},null,{"$f":"D30*E30","v":{"v":0,"d":"R0.00"}}]
[]
[6,"Ditto, but corner post and gate posts","No",{"$f":"6","v":6},null,{"$f":"D32*E32","v":{"v":0,"d":"R0.00"}}]
[]
[7,"Anti-tunnelling at the bottom of the perimeter fence panels, with bottom rail of the panels the flush at maximum 70mm from ground level","No",14,null,{"$f":"D34*E34","v":{"v":0,"d":"R0.00"}}]
[]
[8,"Pedestrian access gate size 1500 x 2400mm high fixed  complete including  ironmongery  and 900mm diameter razor coil  on top to match the perimeter fence","No",1,null,{"$f":"D36*E36","v":{"v":0,"d":"R0.00"}}]
[]
[9,"50mm Galvanised steel locking chain 500mm long welded to  gate frame.","No",1,null,{"v":0,"d":"R0.00"}]
[]
[10,"Union 3122-51mm brass padlock.","No",1,{"$f":"'Marapong Fence-Mini Bill '!E39","v":{"v":0,"d":"R0.00"}},{"v":0,"d":"R0.00"}]
[]
[null,"Sub-Total",{"$nulls":3},{"$f":"SUM(F14:F40)","v":{"v":0,"d":"R0.00"}}]
[]
[11,"Contigency Amount @10%",{"$nulls":3},{"$f":"F42*10%","v":{"v":0,"d":"R0.00"}}]
[]
[null,"Sub-Total",{"$nulls":3},{"$f":"F42+F44","v":{"v":0,"d":"R0.00"}}]
[]
[null,"Add Vat @15%",{"$nulls":3},{"$f":"(F42+F44)*15%","v":{"v":0,"d":"R0.00"}}]
[]
[null,"Tatal Incl Vat",{"$nulls":3},{"$f":"F42+F44+F48","v":{"v":0,"d":"R0.00"}}]
[]
[]
[null," "]
[]
[]
[]
[]
[null," "]
[]
[]
[]
[null," "]
[]
[]
[]
[]
[]
[null," "]
[]
[]
[]
[]
[]
[]
[null," "]

{"sheet":"Steenbokpan Fence-Mini Bill","index":4,"n_rows":77,"n_cols":6,"rows_kept":77}
[]
[null,"Steenbokpan Air Quality Monitoring Station high mesh security fencing"]
[]
[null,"ALL BILLS PROVISIONAL"]
[]
["Item No. ","DESCRIPTION","UNIT","QTY","RATE","AMOUNT"]
[]
[null,"PRELIMINARY AND GENERAL"]
[]
[null,"(Applicable to the whole of the Works) "]
[]
[null,"Contractor to allow for Health & Safety Requirements, Enviromental & Quality Requirements,  Security, Site Establishment, Ablutions etc. All costs assosciated with running the project"]
[]
[1,"Management of works","Item",1,{"$f":"'Bongidvuba Fencing '!E14","v":{"v":0,"d":"R0.00"}},{"$f":"D14*E14","v":{"v":0,"d":"R0.00"}}]
[]
[]
[null,"Steenbokpan Air Quality Monitoring Station high mesh security fencing"]
[]
[null,"SITE CLEARANCE, ETC.: "]
[]
[]
[2,"Allow for clearing site for the width of 1000mm where fencing runs are to be erected including removing trees, shrubs etc, not exceeding 200mm girth, grubbing up roots and roughly levelling,","m2",{"$f":"(8.5*2)+(11.5*2)-(1.5)","v":38.5},null,{"$f":"D22*E22","v":{"v":0,"d":"R0.00"}}]
[]
[3,"Excavate in earth and fill adjacent portion to make up levels under fence line,","m2",{"$f":"(8.5*2)+(11.5*2)-(1.5)","v":38.5},null,{"v":0,"d":"R0.00"}]
[]
[null,"FENCING "]
[]
[null,"Galvanised High Security Fencing: "]
[]
[4,"Galvanised High Security Mesh Panels size 2400mm high, constructed of 76,2 x 12,7 x 4mm high tensile steel welded at a strength of 80% including 25MPa concrete foundations size 650mm x 350mm x 600mm deep for intermediate post, size 650 x 450 x 600mm deep for Corner post and Gate posts,Including compaction of the bottom of the fence post at 93% of mod. Aashto and including 2mm Class A galvanised binding wire and including straining eye bolts; the top covered with a single row of 900mm diameter razor coil  wire attached to and including four rows strands of double stranded barbed wire and weld mesh with Hog ring clips at 300mm centres, and at each overlap of the adjacent raizor coil.","m",{"$f":"(8.5*2)+(11.5*2)-(1.5)","v":38.5},null,{"$f":"D30*E30","v":{"v":0,"d":"R0.00"}}]
[]
[5,"Extra over fencing for 3000mm long galvanised intermediate post made up of either S275JR or S355JR Grade Steel set vertically into foundations at required centres including countersunk stainless steel cover plates to posts made up of 18mm x 40mm button head security screws, nuts and washers ","No",{"$f":"15","v":15},null,{"$f":"D32*E32","v":{"v":0,"d":"R0.00"}}]
[]
[6,"Ditto, but corner post and gate posts","No",{"$f":"6","v":6},null,{"$f":"D34*E34","v":{"v":0,"d":"R0.00"}}]
[]
[7,"Anti-tunnelling at the bottom of the perimeter fence panels, with bottom rail of the panels the flush at maximum 70mm from ground level","No",14,null,{"$f":"D36*E36","v":{"v":0,"d":"R0.00"}}]
[]
[8,"Pedestrian access gate size 1500 x 2400mm high fixed  complete including  ironmongery  and 900mm diameter razor coil  on top to match the perimeter fence","No",1,null,{"$f":"D38*E38","v":{"v":0,"d":"R0.00"}}]
[]
[9,"50mm Galvanised steel locking chain 500mm long welded to  gate frame.","No",1,null,{"$f":"D40*E40","v":{"v":0,"d":"R0.00"}}]
[]
[10,"Union 3122-51mm brass padlock.","No",1,null,{"v":0,"d":"R0.00"}]
[]
[null,"Sub-Total",{"$nulls":3},{"$f":"SUM(F14:F42)","v":{"v":0,"d":"R0.00"}}]
[]
[11,"Contigency Amount @10%",{"$nulls":3},{"$f":"F44*10%","v":{"v":0,"d":"R0.00"}}]
[]
[null,"Sub-Total",{"$nulls":3},{"$f":"F44+F46","v":{"v":0,"d":"R0.00"}}]
[]
[null,"Add Vat @15%",{"$nulls":3},{"$f":"(F44+F46)*15%","v":{"v":0,"d":"R0.00"}}]
[]
[null,"Tatal Incl Vat",{"$nulls":3},{"$f":"F44+F46+F50","v":{"v":0,"d":"R0.00"}}]
[]
[]
[null," "]
[]
[]
[]
[]
[null," "]
[]
[]
[]
[null," "]
[]
[]
[]
[]
[]
[null," "]
[]
[]
[]
[]
[]
[]
[null," "]

{"sheet":"Le Notsi Fence-Mini Bill","index":5,"n_rows":75,"n_cols":6,"rows_kept":75}
[]
[null,"LE Notsi Air Quality Monitoring Station high mesh security fencing"]
[]
[null,"ALL BILLS PROVISIONAL"]
[]
["Item No. ","DESCRIPTION","UNIT","QTY","RATE","AMOUNT"]
[]
[null,"PRELIMINARY AND GENERAL"]
[]
[null,"(Applicable to the whole of the Works) "]
[]
[null,"Contractor to allow for Health & Safety Requirements, Enviromental & Quality Requirements,  Security, Site Establishment, Ablutions etc. All costs assosciated with running the project"]
[]
[1,"Management of works","Item",1,null,{"$f":"D14*E14","v":{"v":0,"d":"R0.00"}}]
[]
[null,"LE Notsi Air Quality Monitoring Station high mesh security fencing"]
[]
[null,"SITE CLEARANCE, ETC.: "]
[]
[2,"Allow for clearing site for the width of 1000mm where fencing runs are to be erected including removing trees, shrubs etc, not exceeding 200mm girth, grubbing up roots and roughly levelling,","m2",{"$f":"(8.5*2)+(11.5*2)-(1.5)","v":38.5},null,{"$f":"D20*E20","v":{"v":0,"d":"R0.00"}}]
[]
[3,"Excavate in earth and fill adjacent portion to make up levels under fence line","m2",{"$f":"(8.5*2)+(11.5*2)-(1.5)","v":38.5},null,{"v":0,"d":"R0.00"}]
[]
[null,"FENCING "]
[]
[null,"Galvanised High Security Fencing: "]
[]
[4,"Galvanised High Security Mesh Panels size 2400mm high, constructed of 76,2 x 12,7 x 4mm high tensile steel welded at a strength of 80% including 25MPa concrete foundations size 650mm x 350mm x 600mm deep for intermediate post, size 650 x 450 x 600mm deep for Corner post and Gate posts,Including compaction of the bottom of the fence post at 93% of mod. Aashto and including 2mm Class A galvanised binding wire and including straining eye bolts; the top covered with a single row of 900mm diameter razor coil  wire attached to and including four rows strands of double stranded barbed wire and weld mesh with Hog ring clips at 300mm centres, and at each overlap of the adjacent raizor coil.","m",{"$f":"(8.5*2)+(11.5*2)-(1.5)","v":38.5},null,{"$f":"D28*E28","v":{"v":0,"d":"R0.00"}}]
[]
[5,"Extra over fencing for 3000mm long galvanised intermediate post made up of either S275JR or S355JR Grade Steel set vertically into foundations at required centres including countersunk stainless steel cover plates to posts made up of 18mm x 40mm button head security screws, nuts and washers ","No",{"$f":"15","v":15},null,{"$f":"D30*E30","v":{"v":0,"d":"R0.00"}}]
[]
[6,"Ditto, but corner post and gate posts","No",{"$f":"6","v":6},null,{"$f":"D32*E32","v":{"v":0,"d":"R0.00"}}]
[]
[7,"Anti-tunnelling at the bottom of the perimeter fence panels, with bottom rail of the panels the flush at maximum 70mm from ground level","No",14,null,{"$f":"D34*E34","v":{"v":0,"d":"R0.00"}}]
[]
[8,"Pedestrian access gate size 1500 x 2400mm high fixed  complete including  ironmongery  and 900mm diameter razor coil  on top to match the perimeter fence","No",1,null,{"$f":"D36*E36","v":{"v":0,"d":"R0.00"}}]
[]
[9,"50mm Galvanised steel locking chain 500mm long welded to  gate frame.","No",1,null,{"v":0,"d":"R0.00"}]
[]
[10,"Union 3122-51mm brass padlock.","No",1,null,{"v":0,"d":"R0.00"}]
[]
[null,"Sub-Total",{"$nulls":3},{"$f":"SUM(F14:F40)","v":{"v":0,"d":"R0.00"}}]
[]
[11,"Contigency Amount @10%",{"$nulls":3},{"$f":"F42*10%","v":{"v":0,"d":"R0.00"}}]
[]
[null,"Sub-Total",{"$nulls":3},{"$f":"F42+F44","v":{"v":0,"d":"R0.00"}}]
[]
[null,"Add Vat @15%",{"$nulls":3},{"$f":"(F42+F44)*15%","v":{"v":0,"d":"R0.00"}}]
[]
[null,"Tatal Incl Vat",{"$nulls":3},{"$f":"F42+F44+F48","v":{"v":0,"d":"R0.00"}}]
[]
[]
[null," "]
[]
[]
[]
[]
[null," "]
[]
[]
[]
[null," "]
[]
[]
[]
[]
[]
[null," "]
[]
[]
[]
[]
[]
[]
[null," "]

{"sheet":"Nalithuba Fence-Mini Bill","index":6,"n_rows":78,"n_cols":6,"rows_kept":78}
[]
[null,"Nalithuba Air Quality Monitoring Station high mesh security fencing"]
[]
[null,"ALL BILLS PROVISIONAL"]
[]
["Item No. ","DESCRIPTION","UNIT","QTY","RATE","AMOUNT"]
[]
[null,"PRELIMINARY AND GENERAL"]
[]
[null,"(Applicable to the whole of the Works) "]
[]
[null,"Contractor to allow for Health & Safety Requirements, Enviromental & Quality Requirements,  Security, Site Establishment, Ablutions etc. All costs assosciated with running the project"]
[]
[1,"Management of works","Item",1,null,{"$f":"D14*E14","v":{"v":0,"d":"R0.00"}}]
[]
[null,"REMOVAL OF THE EXISTING FENCE"]
[]
[2,"Take down and remove existing 1800mm security fence with 100mm diameter  steel poles, barbed wire and 100 x 100mm, including 1,5m wide pedestrian gate  secumesh and hand over to the Employer.","m",{"$f":"82","v":82},null,{"$f":"D18*E18","v":{"v":0,"d":"R0.00"}}]
[]
[null,"SITE CLEARANCE, ETC.: "]
[]
[3,"Allow for clearing site for the width of 1000mm where fencing runs are to be erected including removing trees, shrubs etc, not exceeding 200mm girth, grubbing up roots and roughly levelling,","m2",{"$f":"(8.5*2)+(11.5*2)-(1.5)","v":38.5},null,{"$f":"D22*E22","v":{"v":0,"d":"R0.00"}}]
[]
[4,"Excavate in earth and fill adjacent portion to make up levels under fence line","m2",{"$f":"(8.5*2)+(11.5*2)-(1.5)","v":38.5},null,{"v":0,"d":"R0.00"}]
[]
[null,"FENCING "]
[]
[null,"Galvanised High Security Fencing: "]
[]
[5,"Galvanised High Security Mesh Panels size 2400mm high, constructed of 76,2 x 12,7 x 4mm high tensile steel welded at a strength of 80% including 25MPa concrete foundations size 650mm x 350mm x 600mm deep for intermediate post, size 650 x 450 x 600mm deep for Corner post and Gate posts,Including compaction of the bottom of the fence post at 93% of mod. Aashto and including 2mm Class A galvanised binding wire and including straining eye bolts; the top covered with a single row of 900mm diameter razor coil  wire attached to and including four rows strands of double stranded barbed wire and weld mesh with Hog ring clips at 300mm centres, and at each overlap of the adjacent raizor coil.","m",{"$f":"82","v":82},null,{"$f":"D30*E30","v":{"v":0,"d":"R0.00"}}]
[]
[6,"Extra over fencing for 3000mm long galvanised intermediate post made up of either S275JR or S355JR Grade Steel set vertically into foundations at required centres including countersunk stainless steel cover plates to posts made up of 18mm x 40mm button head security screws, nuts and washers ","No",{"$f":"15*2","v":30},null,{"$f":"D32*E32","v":{"v":0,"d":"R0.00"}}]
[]
[7,"Ditto, but corner post and gate posts","No",{"$f":"6*2","v":12},null,{"$f":"D34*E34","v":{"v":0,"d":"R0.00"}}]
[]
[8,"Anti-tunnelling at the bottom of the perimeter fence panels, with bottom rail of the panels the flush at maximum 70mm from ground level","No",{"$f":"14*2","v":28},null,{"$f":"D36*E36","v":{"v":0,"d":"R0.00"}}]
[]
[9,"Pedestrian access gate size 1500 x 2400mm high fixed  complete including  ironmongery  and 900mm diameter razor coil  on top to match the perimeter fence","No",{"$f":"1*2","v":2},null,{"$f":"D38*E38","v":{"v":0,"d":"R0.00"}}]
[]
[10,"50mm Galvanised steel locking chain 500mm long welded to  gate frame.","No",{"$f":"2","v":2},null,{"v":0,"d":"R0.00"}]
[]
[11,"Union 3122-51mm brass padlock.","No",{"$f":"1*2","v":2},null,{"v":0,"d":"R0.00"}]
[]
[]
[null,"Sub-Total",{"$nulls":3},{"$f":"SUM(F14:F43)","v":{"v":0,"d":"R0.00"}}]
[]
[12,"Contigency Amount @10%",{"$nulls":3},{"$f":"F45*10%","v":{"v":0,"d":"R0.00"}}]
[]
[null,"Sub-Total",{"$nulls":3},{"$f":"F45+F47","v":{"v":0,"d":"R0.00"}}]
[]
[null,"Add Vat @15%",{"$nulls":3},{"$f":"(F45+F47)*15%","v":{"v":0,"d":"R0.00"}}]
[]
[null,"Tatal Incl Vat",{"$nulls":3},{"$f":"F45+F47+F51","v":{"v":0,"d":"R0.00"}}]
[]
[]
[null," "]
[]
[]
[]
[]
[null," "]
[]
[]
[]
[null," "]
[]
[]
[]
[]
[]
[null," "]
[]
[]
[]
[]
[]
[]
[null," "]

{"sheet":"Eskom Real Estate","index":7,"n_rows":8,"n_cols":6,"rows_kept":8}
[]
[null,"Eskom Real Estate:Lephalale Site"]
[]
["Item No. ","DESCRIPTION","UNIT","QTY","RATE","AMOUNT"]
[]
[1,"Allowance for complete installation of 3000mm x 3000mm diamond mesh fence size 1200mm High with 1,5mm wide pedestrian gate, including 4x Corner posts and Heavy-Duty Black Bitumen Steel Star Picket in between embedded in 150mm thick concrete floor slab","Sum",{"$f":"1","v":1},null,{"$f":"D6*E6","v":{"v":0,"d":"R0.00"}}]
[]
[null,"Sub-Total Excl. VAT",{"$nulls":3},{"$f":"F6","v":{"v":0,"d":"R0.00"}}]